bitfinex/quotes_SOLUSD_20250901
["timestamp","ask_amount","ask_price","bid_price","bid_amount"]
[1756689184262,3.69270667,200.59,200.56,26.0]
[1756689184456,3.69270667,200.59,200.58,39.96]
[1756689184661,0.06,200.59,200.58,39.96]
[1756689185368,3.69270667,200.59,200.56,4.322707]
[1756689185582,3.69270667,200.59,200.57,39.96]
[1756689185765,3.63270667,200.58,200.53,30.984817]
[1756689185961,3.63270667,200.58,200.54,40.65]
[1756689186162,0.06,200.59,200.54,40.65]
[1756689186163,0.06,200.59,200.55,4.9862877]
[1756689186371,0.06,200.59,200.55,0.69]
[1756689186589,3.69270667,200.59,200.55,0.69]
[1756689187296,3.69270667,200.59,200.56,39.96]
[1756689187591,3.69270667,200.59,200.57,39.96]
[1756689187887,3.69270667,200.59,200.55,0.69]
[1756689187888,3.69270667,200.59,200.58,39.96]
[1756689188385,0.06,200.59,200.58,39.96]
[1756689188566,3.69270667,200.59,200.58,39.96]
[1756689188761,8.67800005,200.59,200.53,109.684817]
[1756689188967,3.63270667,200.56,200.54,39.96]
[1756689189173,0.73,200.59,200.54,39.96]
[1756689189377,3.63270667,200.58,200.54,39.96]
[1756689189665,3.63270667,200.57,200.54,39.96]
[1756689190474,3.63270667,200.57,200.55,0.69]
[1756689190789,3.63270667,200.58,200.55,0.69]
[1756689190990,3.69270667,200.59,200.56,0.69]
[1756689191177,3.69270667,200.59,200.57,39.96]
[1756689191369,0.06,200.59,200.57,40.65]
[1756689191880,0.06,200.59,200.57,39.96]
[1756689192177,3.69270667,200.59,200.57,39.96]
[1756689193395,0.06,200.59,200.58,0.69]
[1756689193899,0.06,200.59,200.58,4.382707]
[1756689194263,0.06,200.59,200.58,3.692707]
[1756689194569,3.69270667,200.59,200.56,110.7]
[1756689194785,3.69270667,200.59,200.57,39.94]
[1756689196681,3.69270667,200.59,200.57,39.97]
[1756689197996,3.63270667,200.58,200.57,0.03]
[1756689198201,0.06,200.59,200.58,39.94]
[1756689198999,3.69270667,200.59,200.58,39.94]
[1756689201918,9.34802354,200.59,200.57,0.03]
[1756689202073,3.63270667,200.58,200.57,0.03]
[1756689202386,26.0,200.56,200.55,5.045083]
[1756689202591,30.30270667,200.56,200.54,0.03]
[1756689202784,3.63270667,200.55,200.53,18.64]
[1756689202988,4.30270667,200.54,200.53,18.64]
[1756689203573,4.30270667,200.54,200.52,0.03]
[1756689203783,3.63270667,200.53,200.52,0.03]
[1756689203994,8.61949168,200.53,200.52,0.03]
[1756689204300,9.28949168,200.53,200.52,0.03]
[1756689206074,9.28949168,200.53,200.52,1e-08]
[1756689208305,3.63270667,200.53,200.52,1e-08]
[1756689208596,3.63270667,200.53,200.52,39.94000001]
[1756689208970,3.63270667,200.55,200.52,40.63000001]
[1756689209189,8.61875943,200.56,200.52,40.63000001]
[1756689209599,8.61875943,200.56,200.52,39.94000001]
[1756689209600,3.63270667,200.55,200.52,39.94000001]
[1756689209772,3.63270667,200.54,200.52,39.94000001]
[1756689210611,4.30270667,200.53,200.52,1e-08]
[1756689210787,8.61930924,200.54,200.52,39.94000001]
[1756689211107,8.61904645,200.55,200.52,40.63000001]
[1756689211297,3.63270667,200.54,200.52,39.94000001]
[1756689212508,3.63270667,200.55,200.52,39.94000001]
[1756689212714,8.61909801,200.55,200.52,39.94000001]
[1756689212916,3.63270667,200.54,200.52,39.94000001]
[1756689213293,3.63270667,200.53,200.52,39.94000001]
[1756689213496,3.63270667,200.54,200.52,39.94000001]
[1756689214087,3.63270667,200.53,200.52,39.94000001]
[1756689214287,3.63270667,200.54,200.52,39.94000001]
[1756689215110,3.63270667,200.57,200.53,0.71]
[1756689215286,3.63270667,200.54,200.52,1e-08]
[1756689215488,3.63270667,200.53,200.52,1e-08]
[1756689215713,0.72,200.53,200.52,39.92000001]
[1756689215890,4.35270667,200.53,200.52,39.92000001]
[1756689216725,9.33949168,200.53,200.52,39.92000001]
[1756689218209,5.70678501,200.53,200.52,39.92000001]
[1756689218421,9.33949168,200.53,200.52,39.92000001]
[1756689219317,15.050631,200.59,200.52,39.92000001]
[1756689219491,26.0,200.58,200.52,40.63000001]
[1756689219693,3.63270667,200.55,200.52,40.63000001]
[1756689220117,3.63270667,200.54,200.52,39.92000001]
[1756689220802,8.61931957,200.54,200.52,39.92000001]
[1756689220994,8.61931957,200.54,200.53,39.92]
[1756689221915,3.63270667,200.54,200.53,39.92]
[1756689222102,8.61924302,200.54,200.53,39.92]
[1756689222303,0.06,200.59,200.53,40.63]
[1756689222504,5.04530977,200.59,200.53,40.63]
[1756689222819,3.63270667,200.57,200.53,40.63]
[1756689223013,3.63270667,200.56,200.53,39.92]
[1756689223322,3.63270667,200.56,200.53,40.63]
[1756689223509,3.63270667,200.54,200.52,1e-08]
[1756689223714,4.98572288,200.58,200.53,39.92]
[1756689223715,3.63270667,200.55,200.53,39.92]
[1756689223902,4.98572288,200.58,200.53,40.63]
[1756689223903,3.63270667,200.56,200.53,40.63]
[1756689224301,3.63270667,200.56,200.53,39.92]
[1756689224507,3.63270667,200.56,200.54,0.71]
[1756689224715,3.63270667,200.56,200.53,39.92]
[1756689224912,3.63270667,200.56,200.53,40.63]
[1756689225221,3.63270667,200.58,200.54,0.71]
[1756689225723,3.63270667,200.57,200.54,0.71]
[1756689225921,0.06,200.59,200.52,1e-08]
[1756689225922,3.63270667,200.55,200.52,1e-08]
[1756689226221,0.72,200.56,200.54,39.92]
[1756689226393,17.44943032,200.58,200.54,39.92]
[1756689226906,0.72,200.57,200.54,39.92]
[1756689227227,3.63270667,200.55,200.54,39.92]
[1756689229409,8.61899437,200.55,200.54,39.92]
[1756689230306,8.61899437,200.55,200.52,1e-08]
[1756689230511,3.63270667,200.53,200.52,1e-08]
[1756689231026,4.35270667,200.53,200.52,1e-08]
[1756689231433,9.33949168,200.53,200.52,1e-08]
[1756689233440,21.80645422,200.53,200.49,0.03]
[1756689233599,3.63270667,200.5,200.49,0.03]
[1756689234036,4.35270667,200.5,200.49,0.03]
[1756689234533,3.63270667,200.5,200.49,0.03]
[1756689235435,9.34023784,200.5,200.49,0.03]
[1756689235933,12.97294451,200.5,200.49,0.03]
[1756689240446,8.62023784,200.5,200.49,0.03]
[1756689240810,9.34023784,200.5,200.49,0.03]
[1756689241016,12.97294451,200.5,200.49,0.03]
[1756689241247,9.34023784,200.5,200.49,0.03]
[1756689242034,12.97294451,200.5,200.49,0.03]
[1756689242355,9.34023784,200.5,200.49,0.03]
[1756689242647,12.97294451,200.5,200.49,0.03]
[1756689243217,9.34023784,200.5,200.49,0.03]
[1756689244518,9.33023784,200.5,200.49,0.03]
[1756689245511,40.995126,200.53,200.49,0.69]
[1756689245851,3.63270667,200.52,200.49,0.69]
[1756689246016,3.63270667,200.51,200.49,0.69]
[1756689246919,3.63270667,200.52,200.5,0.66]
[1756689247449,3.63270667,200.52,200.49,0.03]
[1756689247758,0.06,200.58,200.51,0.66]
[1756689247969,3.69270667,200.58,200.52,3.63270667]
[1756689248180,3.69270667,200.58,200.53,0.66]
[1756689248347,3.63270667,200.57,200.54,0.66]
[1756689248685,3.63270667,200.56,200.55,3.68931602]
[1756689251761,5.04580899,200.57,200.55,3.68931602]
[1756689251966,3.63270667,200.56,200.55,0.66]
[1756689252175,3.63270667,200.56,200.55,3.68903983]
[1756689252674,0.06,200.57,200.55,7.9817465]
[1756689252853,0.06,200.57,200.56,7.9817465]
[1756689253048,0.06,200.57,200.56,9.9793995]
[1756689253546,0.06,200.57,200.56,6.29035967]
[1756689253746,0.06,200.57,200.56,9.97704385]
[1756689254491,0.06,200.57,200.56,14.95987166]
[1756689254784,0.06,200.57,200.56,29.05406957]
[1756689255180,0.06,200.57,200.56,57.37059667]
[1756689255482,0.06,200.57,200.56,61.05172413]
[1756689257689,0.06,200.57,200.56,57.41901746]
[1756689257862,0.06,200.57,200.56,100.91172413]
[1756689258063,0.06,200.57,200.56,100.41312023]
[1756689258273,0.06,200.57,200.56,96.78041356]
[1756689258493,0.06,200.57,200.56,100.41312023]
[1756689259887,0.06,200.57,200.56,51.93437447]
[1756689260052,0.06,200.57,200.56,64.78041356]
[1756689260253,0.06,200.57,200.56,68.41312023]
[1756689260572,0.06,200.57,200.56,43.54112746]
[1756689260889,0.06,200.57,200.56,63.92558504]
[1756689261258,0.06,200.57,200.56,68.91162413]
[1756689261452,0.06,200.57,200.56,68.90316299]
[1756689263178,0.06,200.57,200.56,100.90316299]
[1756689263502,0.06,200.57,200.56,100.40455909]
[1756689263871,1e-08,200.57,200.56,100.40455909]
[1756689264968,0.06,200.58,200.57,13.59559401]
[1756689265199,0.06,200.59,200.57,25.68466678]
[1756689265491,0.06,200.6,200.59,13.59559401]
[1756689265683,0.06,200.6,200.59,25.02461707]
[1756689265997,0.06,200.6,200.59,30.66991045]
[1756689266881,0.06,200.69,200.61,39.59559401]
[1756689267199,0.06,200.69,200.61,87.2318607]
[1756689267381,0.06,200.69,200.61,87.8918607]
[1756689267896,0.06,200.69,200.61,92.87665707]
[1756689268068,0.06,200.69,200.61,124.87665707]
[1756689268272,0.06,200.69,200.61,126.37473344]
[1756689268591,0.77,200.69,200.61,126.37473344]
[1756689269170,0.06,200.69,200.62,13.59559401]
[1756689269372,0.06,200.69,200.62,22.05183586]
[1756689269594,0.06,200.69,200.64,13.59559401]
[1756689269803,0.06,200.69,200.64,21.39178617]
[1756689270096,0.06,200.69,200.64,27.0358372]
[1756689270302,0.06,200.69,200.65,39.59559401]
[1756689270483,0.06,200.69,200.65,87.37338107]
[1756689270879,0.06,200.69,200.65,89.36963807]
[1756689271602,0.06,200.69,200.65,94.35344071]
[1756689271902,0.06,200.69,200.65,90.68836032]
[1756689272100,0.06,200.69,200.65,94.33748364]
[1756689272278,0.06,200.69,200.65,126.33748364]
[1756689272985,0.06,200.69,200.65,131.25692594]
[1756689273588,1e-08,200.66,200.65,131.25692594]
[1756689274788,1e-08,200.66,200.65,99.25692594]
[1756689275700,1e-08,200.66,200.65,99.24386077]
[1756689276288,1e-08,200.66,200.65,99.24221145]
[1756689277273,0.06,200.69,200.68,39.59559401]
[1756689277478,0.06,200.69,200.68,87.15926264]
[1756689277680,0.1,200.71,200.69,13.59559401]
[1756689277899,0.1,200.71,200.7,90.79191965]
[1756689278320,1e-08,200.71,200.7,65.49191965]
[1756689278876,1e-08,200.71,200.7,70.47448068]
[1756689279082,1e-08,200.71,200.7,70.46976948]
[1756689279299,1e-08,200.71,200.7,56.66976948]
[1756689279506,1e-08,200.71,200.7,69.76976948]
[1756689279778,1e-08,200.71,200.7,70.46976948]
[1756689280995,1e-08,200.71,200.7,56.66976948]
[1756689281207,1e-08,200.71,200.7,48.70435614]
[1756689281522,1e-08,200.71,200.7,98.11706281]
[1756689281682,1e-08,200.71,200.7,97.61880671]
[1756689282603,1e-08,200.71,200.7,97.6175068]
[1756689283498,0.66000001,200.71,200.7,93.98480013]
[1756689283716,0.66000001,200.71,200.7,97.6175068]
[1756689283886,1e-08,200.71,200.7,97.6175068]
[1756689284887,0.66000001,200.71,200.7,54.20480013]
[1756689285106,0.66000001,200.71,200.7,97.5975068]
[1756689285308,1e-08,200.71,200.7,116.22021347]
[1756689285506,1e-08,200.71,200.7,116.92021347]
[1756689285815,1e-08,200.71,200.7,116.22021347]
[1756689286015,1e-08,200.71,200.7,112.59356838]
[1756689286214,1e-08,200.71,200.7,116.91675839]
[1756689287404,1e-08,200.71,200.7,118.21251739]
[1756689288109,1e-08,200.71,200.7,110.94710405]
[1756689288314,1e-08,200.71,200.7,118.21251739]
[1756689288513,1e-08,200.71,200.7,118.91251739]
[1756689290095,1e-08,200.72,200.71,28.58559401]
[1756689290302,0.1,200.78,200.71,28.58559401]
[1756689290303,0.76,200.78,200.73,54.58559401]
[1756689290503,1e-08,200.74,200.73,180.79967232]
[1756689290709,1e-08,200.74,200.73,181.00149069]
[1756689291014,1e-08,200.74,200.73,182.99675169]
[1756689291215,1e-08,200.74,200.73,179.36404502]
[1756689291396,1e-08,200.74,200.73,187.27856806]
[1756689291788,1e-08,200.74,200.73,187.97856806]
[1756689291994,1e-08,200.74,200.73,184.34586139]
[1756689292313,1e-08,200.74,200.73,187.97856806]
[1756689293219,1e-08,200.74,200.73,219.97856806]
[1756689293398,1e-08,200.74,200.73,219.27856806]
[1756689293719,1e-08,200.74,200.73,219.25856806]
[1756689295716,0.66000001,200.74,200.73,160.89586139]
[1756689295897,0.66000001,200.74,200.73,204.26856806]
[1756689296636,0.66000001,200.74,200.73,200.64537805]
[1756689296821,0.66000001,200.74,200.73,204.2865494]
[1756689297029,0.66000001,200.74,200.73,164.5465494]
[1756689297213,0.66000001,200.74,200.73,204.2865494]
[1756689297990,0.66000001,200.74,200.73,155.93202636]
[1756689298198,0.66000001,200.74,200.73,199.30473303]
[1756689298427,0.66000001,200.74,200.73,77.23202636]
[1756689298720,0.66000001,200.74,200.73,43.38117135]
[1756689298925,0.66000001,200.74,200.73,3.64117135]
[1756689299128,0.66000001,200.74,200.73,43.36117135]
[1756689300320,0.66000001,200.74,200.73,7.37387735]
[1756689300525,0.66000001,200.74,200.73,47.09387735]
[1756689300736,1e-08,200.74,200.73,61.28947203]
[1756689300935,1e-08,200.74,200.73,61.66310903]
[1756689301223,0.1,200.78,200.77,13.59559401]
[1756689301406,0.1,200.78,200.77,60.58947203]
[1756689301598,0.76,200.78,200.77,97.57029585]
[1756689301800,0.76,200.78,200.77,94.58483303]
[1756689302223,0.76,200.78,200.77,99.56565685]
[1756689303738,0.1,200.78,200.77,99.56565685]
[1756689303919,0.1,200.78,200.77,115.26565685]
[1756689304313,0.1,200.78,200.77,114.55565685]
[1756689304635,0.1,200.78,200.77,99.56565685]
[1756689304636,0.8,200.78,200.77,99.56565685]
[1756689305431,0.8,200.78,200.77,80.86483303]
[1756689305632,0.8,200.78,200.77,120.58483303]
[1756689305798,0.8,200.78,200.77,125.56565685]
[1756689306005,0.8,200.78,200.77,120.58855708]
[1756689306343,0.1,200.78,200.77,125.5693809]
[1756689306543,0.1,200.78,200.77,125.57260591]
[1756689309031,0.1,200.8,200.79,54.58559401]
[1756689309231,0.1,200.8,200.79,105.69716053]
[1756689309454,0.7,200.87,200.82,39.59559401]
[1756689309615,0.7,200.89,200.82,91.55600479]
[1756689309937,0.7,200.89,200.82,92.26600479]
[1756689310109,1e-08,200.83,200.82,94.26056879]
[1756689310629,4.9764288,200.95,200.82,94.26056879]
[1756689310630,1e-08,200.84,200.83,28.58559401]
[1756689310931,1e-08,200.84,200.83,37.07435466]
[1756689311319,0.8,200.92,200.87,13.59559401]
[1756689311519,0.1,200.92,200.91,3.63270667]
[1756689311715,0.1,200.92,200.91,51.95818012]
[1756689311914,0.1,200.92,200.91,59.41626508]
[1756689312215,0.8,200.92,200.91,96.39361812]
[1756689312542,0.8,200.92,200.91,91.41626508]
[1756689312715,0.8,200.92,200.91,87.78355841]
[1756689312910,0.8,200.92,200.91,48.08355841]
[1756689313150,9.40981198,200.92,200.91,43.34812041]
[1756689313639,4.43270667,200.92,200.91,43.34812041]
[1756689313843,9.40981198,200.92,200.91,43.35396339]
[1756689314044,5.77710531,200.92,200.91,43.35396339]
[1756689314349,9.40981198,200.92,200.91,39.68]
[1756689315340,25.48528193,200.92,200.84,14.962221]
[1756689315526,3.63270667,200.9,200.85,43.339166]
[1756689315720,0.7,200.89,200.86,3.659166]
[1756689315919,3.63270667,200.9,200.83,14.962221]
[1756689315920,0.7,200.88,200.87,43.339166]
[1756689316148,0.7,200.88,200.87,3.659166]
[1756689316689,0.7,200.88,200.8,14.965206]
[1756689316955,26.0,200.83,200.75,14.965206]
[1756689317128,26.0,200.83,200.76,19.4]
[1756689317454,4.97983168,200.81,200.76,19.4]
[1756689317613,0.7,200.8,200.74,14.969686]
[1756689317816,0.7,200.79,200.75,39.68]
[1756689318040,0.7,200.78,200.76,39.68]
[1756689318246,0.7,200.77,200.76,39.68]
[1756689319151,6.49754856,200.77,200.76,39.68]
[1756689319519,6.49754856,200.77,200.71,46.971181]
[1756689319717,5.79754856,200.74,200.72,39.68]
[1756689319939,5.79754856,200.73,200.72,39.68]
[1756689320137,5.79754856,200.74,200.72,39.68]
[1756689320317,6.49754856,200.74,200.72,39.68]
[1756689320843,5.79754856,200.74,200.72,39.68]
[1756689321016,6.49754856,200.74,200.72,39.68]
[1756689321218,6.49754856,200.73,200.72,39.68]
[1756689321549,11.47936493,200.73,200.72,39.68]
[1756689321747,11.47936493,200.73,200.7,0.03]
[1756689321959,5.79754856,200.71,200.7,0.03]
[1756689322128,5.79754856,200.71,200.7,39.71]
[1756689322333,6.49754856,200.71,200.7,39.71]
[1756689323839,5.79754856,200.71,200.7,39.71]
[1756689324141,0.7,200.74,200.7,39.71]
[1756689324369,5.79754856,200.73,200.7,39.71]
[1756689324567,6.49754856,200.73,200.7,39.71]
[1756689324775,6.49754856,200.72,200.7,39.71]
[1756689324958,5.79754856,200.72,200.7,39.71]
[1756689325142,6.49754856,200.72,200.7,39.71]
[1756689325341,5.79754856,200.72,200.7,39.71]
[1756689325539,6.49754856,200.71,200.7,39.71]
[1756689325854,5.79754856,200.71,200.7,39.71]
[1756689326453,0.7,200.74,200.7,39.71]
[1756689326688,5.79754856,200.71,200.7,39.71]
[1756689330643,11.47986134,200.71,200.7,0.03]
[1756689330841,11.47986134,200.71,200.7,39.71]
[1756689331175,10.77986134,200.71,200.7,39.71]
[1756689331663,5.79754856,200.73,200.7,40.42]
[1756689331872,14.977159,200.75,200.7,40.42]
[1756689332172,5.79754856,200.74,200.7,55.342675]
[1756689332473,5.68112227,200.76,200.71,0.66]
[1756689332768,5.79754856,200.73,200.7,15.002675]
[1756689332956,5.79754856,200.72,200.71,39.68]
[1756689333465,6.46754856,200.72,200.71,39.68]
[1756689333676,6.46754856,200.72,200.7,0.03]
[1756689333853,5.79754856,200.71,200.7,0.03]
[1756689334053,6.46754856,200.71,200.7,0.03]
[1756689334365,11.44986134,200.71,200.7,0.03]
[1756689335571,5.79754856,200.71,200.7,0.03]
[1756689335772,5.65177796,200.74,200.7,0.03]
[1756689335978,6.46754856,200.71,200.7,0.03]
[1756689336173,5.79754856,200.71,200.7,0.03]
[1756689336477,5.79754856,200.72,200.7,0.03]
[1756689336852,5.79754856,200.71,200.7,0.03]
[1756689337783,6.46754856,200.71,200.7,0.03]
[1756689337957,4.29645665,200.71,200.7,0.03]
[1756689338154,9.27876943,200.71,200.7,0.03]
[1756689339868,8.60876943,200.71,200.7,0.03]
[1756689340463,3.62645665,200.71,200.7,0.03]
[1756689341385,3.62645665,200.72,200.7,0.69]
[1756689341597,3.62645665,200.74,200.71,0.66]
[1756689341893,3.62645665,200.75,200.72,39.68]
[1756689342061,5.79749472,200.75,200.73,0.66]
[1756689342253,5.79749472,200.75,200.72,39.68]
[1756689342454,5.79749472,200.75,200.72,40.34]
[1756689342651,5.79749472,200.74,200.72,0.66]
[1756689342855,5.79749472,200.73,200.7,15.002675]
[1756689343055,4.98136654,200.75,200.7,0.03]
[1756689343056,5.79749472,200.71,200.7,0.03]
[1756689343464,5.79749472,200.71,200.7,39.69]
[1756689344366,10.7798075,200.71,200.7,39.69]
[1756689345568,11.4498075,200.71,200.7,0.03]
[1756689346271,63.50118348,200.71,200.67,0.03]
[1756689346505,5.79749472,200.68,200.67,0.03]
[1756689346870,6.46749472,200.68,200.67,0.03]
[1756689347572,11.45055232,200.68,200.67,0.03]
[1756689347773,5.6530576,200.68,200.67,0.03]
[1756689347984,11.45055232,200.68,200.67,0.03]
[1756689348466,13.59559401,200.67,200.65,0.03]
[1756689348673,26.0,200.63,200.62,0.03]
[1756689348874,31.79749472,200.63,200.62,0.03]
[1756689349074,32.46749472,200.63,200.62,0.03]
[1756689349283,5.79749472,200.63,200.62,0.03]
[1756689349487,10.78179417,200.63,200.62,0.03]
[1756689349695,11.45179417,200.63,200.62,0.03]
[1756689350994,5.65429945,200.63,200.62,0.03]
[1756689351192,11.45179417,200.63,200.62,0.03]
[1756689351704,4.9840575,200.64,200.62,0.03]
[1756689351898,5.79749472,200.63,200.62,0.03]
[1756689352085,6.46749472,200.63,200.62,0.03]
[1756689352799,5.79749472,200.63,200.62,0.03]
[1756689353593,10.78179417,200.63,200.62,0.03]
[1756689354296,11.45179417,200.63,200.62,0.03]
[1756689355789,11.45179417,200.63,200.54,32.66]
[1756689355790,26.0,200.6,200.54,0.66]
[1756689355993,5.79749472,200.55,200.54,0.66]
[1756689357081,5.79749472,200.57,200.54,0.66]
[1756689357291,5.79749472,200.57,200.55,0.66]
[1756689358288,5.79749472,200.57,200.54,0.03]
[1756689358908,5.79749472,200.57,200.55,0.66]
[1756689359911,5.79749472,200.57,200.54,0.03]
[1756689360209,5.79749472,200.57,200.55,0.66]
[1756689360591,5.79749472,200.56,200.55,0.66]
[1756689360788,5.79749472,200.57,200.55,0.66]
[1756689361285,5.79749472,200.56,200.55,0.66]
[1756689361817,26.67,200.64,200.55,0.66]
[1756689362113,5.79749472,200.59,200.55,5.64613669]
[1756689362303,5.79749472,200.59,200.56,0.72]
[1756689362502,5.79749472,200.6,200.57,0.72]
[1756689362704,5.79749472,200.63,200.58,5.79749472]
[1756689362901,5.79749472,200.63,200.57,40.38]
[1756689362902,4.9830576,200.68,200.61,5.79749472]
[1756689363219,5.79749472,200.67,200.62,46.17749472]
[1756689363399,5.79749472,200.67,200.63,40.38]
[1756689363924,5.79749472,200.69,200.64,0.72]
[1756689364093,3.62559238,200.68,200.63,48.2698577]
[1756689364298,3.62559238,200.68,200.65,0.72]
[1756689365219,3.62559238,200.66,200.62,39.66]
[1756689365421,3.62559238,200.63,200.62,39.66]
[1756689365603,3.62559238,200.63,200.58,0.72]
[1756689365604,4.27559238,200.63,200.58,0.72]
[1756689365913,3.62559238,200.6,200.58,39.66]
[1756689366416,3.62559238,200.59,200.58,39.66]
[1756689366615,3.62559238,200.59,200.57,39.66]
[1756689366924,3.62559238,200.58,200.57,39.66]
[1756689367092,4.27559238,200.58,200.54,0.03]
[1756689367292,3.62559238,200.55,200.54,0.03]
[1756689368000,5.81034808,200.55,200.54,0.03]
[1756689368209,10.79663578,200.55,200.54,0.03]
[1756689368590,5.81034808,200.55,200.54,0.03]
[1756689368795,26.65,200.6,200.54,0.75]
[1756689369102,5.81034808,200.56,200.54,0.75]
[1756689370025,5.81034808,200.56,200.54,0.03]
[1756689370492,6.46034808,200.55,200.54,0.03]
[1756689371626,26.65,200.6,200.54,0.03]
[1756689371791,5.81034808,200.55,200.54,0.03]
[1756689372894,6.46034808,200.55,200.54,0.03]
[1756689373895,5.81034808,200.55,200.54,0.03]
[1756689375194,10.79663578,200.55,200.54,0.03]
[1756689376110,11.44663578,200.55,200.54,0.03]
[1756689381124,25.04222979,200.55,200.54,0.03]
[1756689381312,31.81034808,200.53,200.52,0.03]
[1756689381740,36.79713309,200.53,200.52,0.03]
[1756689381925,37.44713309,200.53,200.52,0.03]
[1756689383927,37.44713309,200.53,200.51,0.03]
[1756689383928,43.25748117,200.53,200.51,0.03]
[1756689384111,11.62069616,200.52,200.51,0.03]
[1756689384304,25.21629017,200.52,200.51,0.03]
[1756689384530,25.86629017,200.52,200.51,0.03]
[1756689384701,26.0,200.5,200.49,0.03]
[1756689385017,45.40594209,200.5,200.49,0.03]
[1756689385217,46.05594209,200.5,200.49,0.03]
[1756689385411,46.05594209,200.5,200.49,1e-08]
[1756689385634,46.05594209,200.5,200.47,0.03]
[1756689385802,19.40594209,200.48,200.47,0.03]
[1756689386412,20.05594209,200.48,200.47,0.03]
[1756689387005,25.04397082,200.48,200.47,0.03]
[1756689388018,25.04397082,200.48,200.47,1e-08]
[1756689388213,13.59559401,200.47,200.46,1e-08]
[1756689388412,13.59559401,200.47,200.37,0.72]
[1756689388413,39.59559401,200.45,200.37,0.72]
[1756689388634,13.59559401,200.44,200.37,0.72]
[1756689388932,5.81034808,200.38,200.34,67.94]
[1756689389431,5.81034808,200.38,200.35,0.72]
[1756689390243,5.81034808,200.36,200.35,0.72]
[1756689391934,26.0,200.34,200.33,0.2]
[1756689392118,31.81034808,200.34,200.33,0.2]
[1756689392936,32.49034808,200.34,200.33,0.2]
[1756689393150,37.4818625,200.34,200.33,0.2]
[1756689394023,37.4818625,200.34,200.24,18.13034808]
[1756689394024,61.38573532,200.34,200.3,0.03]
[1756689394271,26.0,200.27,200.21,0.66]
[1756689394541,3.63984083,200.22,200.21,0.66]
[1756689395217,5.67350843,200.26,200.15,3.63984083]
[1756689395423,3.63984083,200.23,200.21,0.66]
[1756689395618,3.63984083,200.22,200.21,0.66]
[1756689396129,5.82825462,200.22,200.21,0.66]
[1756689397035,26.68,200.27,200.21,0.66]
[1756689397238,5.82825462,200.25,200.21,0.66]
[1756689397452,5.82825462,200.24,200.21,0.66]
[1756689397636,5.82825462,200.25,200.21,0.66]
[1756689397820,5.82825462,200.27,200.22,5.82825462]
[1756689398029,5.82825462,200.28,200.23,6.48825462]
[1756689398231,4.99097689,200.37,200.27,5.82825462]
[1756689398460,4.99097689,200.37,200.28,0.66]
[1756689398461,5.82825462,200.33,200.28,0.66]
[1756689398748,5.82825462,200.32,200.29,0.66]
[1756689398953,5.82825462,200.3,200.29,0.66]
[1756689399654,5.82825462,200.33,200.29,0.66]
[1756689399864,5.82825462,200.34,200.29,0.66]
[1756689400152,5.82825462,200.33,200.3,39.78]
[1756689400360,5.82825462,200.32,200.3,39.78]
[1756689400568,5.82825462,200.32,200.28,0.66]
[1756689400754,5.82825462,200.33,200.3,39.78]
[1756689400949,4.99129165,200.35,200.29,0.66]
[1756689400950,5.82825462,200.32,200.29,39.8]
[1756689401139,5.82825462,200.32,200.29,0.66]
[1756689401534,5.82825462,200.31,200.29,39.82]
[1756689401780,5.82825462,200.3,200.29,39.82]
[1756689402262,5.82825462,200.3,200.24,0.66]
[1756689402566,26.0,200.34,200.24,0.66]
[1756689402567,5.82825462,200.28,200.24,0.66]
[1756689402759,30.99201277,200.32,200.25,26.62]
[1756689403060,30.99201277,200.32,200.25,27.28]
[1756689403061,5.82825462,200.28,200.25,27.28]
[1756689403267,5.82825462,200.28,200.26,0.66]